bitfinex-derivatives/quotes_ETHF0:USTF0_20250426
["timestamp","ask_amount","ask_price","bid_price","bid_amount"]
[1745641864659,3.01501994,1793.8,1793.7,4.0248]
[1745641865163,3.01501994,1793.8,1793.7,3.2078]
[1745641865463,3.01501994,1793.8,1793.5,3.621]
[1745641865464,1.11449,1793.6,1793.5,0.8199]
[1745641865662,0.27834994,1793.6,1793.5,0.8199]
[1745641866160,0.27834994,1793.6,1793.5,4.0277]
[1745641866361,0.27834994,1793.6,1793.5,0.8199]
[1745641866560,0.27834994,1793.6,1793.5,4.0277]
[1745641866757,0.27834994,1793.6,1793.5,5.14225]
[1745641867061,0.27834994,1793.8,1793.6,1.11445]
[1745641867559,0.27834994,1793.8,1793.7,1.11443]
[1745641868060,0.27834994,1793.8,1793.7,4.32223]
[1745641869061,0.27834994,1794.0,1793.7,3.2078]
[1745641869258,0.27834994,1794.0,1793.9,3.2078]
[1745641869458,0.27834994,1794.0,1793.8,2.76743]
[1745641869663,0.27834994,1794.0,1793.9,3.2078]
[1745641870462,0.27834994,1794.0,1793.9,4.3221]
[1745641871368,0.27834994,1794.0,1793.9,3.2078]
[1745641871665,0.27834994,1794.1,1793.9,3.2078]
[1745641871867,0.27834994,1794.1,1793.9,4.32206]
[1745641872366,2.98945994,1794.1,1793.9,4.32209]
[1745641872563,1.39258994,1794.0,1793.9,3.2078]
[1745641872768,1.87524994,1794.0,1793.9,3.2078]
[1745641872965,0.27834994,1794.0,1793.9,4.3221]
[1745641873167,0.27834994,1794.1,1794.0,1.11424]
[1745641873361,0.27834994,1794.2,1794.1,1.11418]
[1745641873662,0.27834994,1794.3,1794.1,4.32193]
[1745641873856,0.27834994,1794.3,1794.2,1.96132]
[1745641874261,0.27834994,1794.3,1794.2,0.8472]
[1745641874663,1.39240994,1794.3,1794.2,0.8472]
[1745641874865,3.03770994,1794.3,1794.2,0.8472]
[1745641875868,1.39246994,1794.2,1794.1,3.2078]
[1745641876068,3.03776994,1794.2,1794.1,3.2078]
[1745641876465,3.03776994,1794.2,1793.9,4.457]
[1745641876466,1.11424,1794.0,1793.9,7.6648]
[1745641876664,1.39258994,1794.0,1793.9,7.6648]
[1745641877066,0.27834994,1794.0,1793.9,8.7791]
[1745641877272,0.27834994,1794.2,1794.1,1.11418]
[1745641877870,0.27834994,1794.3,1794.1,3.2078]
[1745641878072,1.11412,1794.2,1794.0,1.1142]
[1745641878471,3.04494994,1794.3,1794.1,1.11418]
[1745641878776,0.27834994,1794.3,1794.2,1.11412]
[1745641879076,0.27834994,1794.3,1794.2,1.99102]
[1745641880869,1.39240994,1794.3,1794.1,3.2078]
[1745641881076,2.00144994,1794.3,1793.9,7.6953]
[1745641881270,2.00144994,1794.3,1794.1,1.11416]
[1745641881471,3.11553994,1794.3,1794.1,1.11416]
[1745641882579,2.00144994,1794.3,1794.1,3.2078]
[1745641882782,3.11552994,1794.3,1794.2,1.5994]
[1745641883072,1.39246994,1794.2,1794.1,3.2078]
[1745641883266,3.04306994,1794.2,1794.1,3.2078]
[1745641884474,1.39258994,1794.0,1793.9,6.8288]
[1745641884870,1.39258994,1794.0,1793.9,4.8072]
[1745641885276,0.27834994,1794.3,1794.2,1.11412]
[1745641885472,0.27834994,1794.5,1794.4,1.11399]
[1745641885670,1.39227994,1794.5,1794.3,1.11401]
[1745641885880,1.39227994,1794.5,1794.4,1.7134]
[1745641886079,0.27834994,1794.5,1794.4,2.82739]
[1745641886271,0.27834994,1794.5,1794.4,6.86969]
[1745641887480,1.39227994,1794.5,1794.4,5.7557]
[1745641887675,0.27834994,1794.5,1794.4,5.7557]
[1745641887879,3.09577994,1794.5,1794.4,4.9212]
[1745641888979,3.09577994,1794.5,1794.4,3.2078]
[1745641889977,0.27834994,1794.5,1794.4,4.32179]
[1745641890179,0.27834994,1794.5,1794.4,6.84639]
[1745641892580,0.27834994,1794.6,1794.5,1.11393]
[1745641892782,0.27834994,1794.6,1794.5,2.86263]
[1745641893176,0.27834994,1794.7,1794.5,2.86263]
[1745641893378,0.27834994,1794.7,1794.6,1.7487]
[1745641893379,3.04400994,1794.7,1794.6,1.7487]
[1745641893584,3.04400994,1794.7,1794.6,2.5499]
[1745641893781,1.93014994,1794.7,1794.6,1.11387]
[1745641893977,0.27834994,1794.7,1794.6,4.32167]
[1745641894483,0.27834994,1794.7,1794.6,5.92717]
[1745641898783,0.27834994,1794.9,1794.8,1.11375]
[1745641899375,0.27834994,1794.9,1794.8,2.76985]
[1745641899882,0.27834994,1794.9,1794.8,5.97765]
[1745641902284,0.27834994,1795.0,1794.9,1.11368]
[1745641902483,0.27834994,1795.0,1794.9,2.86438]
[1745641905986,1.39196994,1795.0,1794.9,2.86438]
[1745641906180,1.39196994,1795.0,1794.9,1.7507]
[1745641906385,0.27834994,1795.0,1794.9,2.86438]
[1745641908688,1.39196994,1795.0,1794.9,1.7507]
[1745641908990,2.99806994,1795.0,1794.9,1.7507]
[1745641913201,0.27834994,1794.9,1794.8,9.61262]
[1745641913498,3.11172994,1794.9,1794.8,7.6707]
[1745641915693,3.11172994,1794.9,1794.8,4.0357]
[1745641915898,1.11387,1794.6,1794.5,3.2226]
[1745641916102,1.39221994,1794.6,1794.5,3.2226]
[1745641916299,3.08591994,1794.6,1794.5,3.2078]
[1745641923102,1.39227994,1794.5,1794.4,0.9177]
[1745641923409,1.11399,1794.4,1794.3,0.8714]
[1745641923711,1.97309,1794.4,1794.3,2.4697]
[1745641924014,1.39240994,1794.3,1794.2,6.8416]
[1745641924214,2.99330994,1794.3,1794.2,3.2226]
[1745641924406,2.99330994,1794.3,1794.2,3.2078]
[1745641925111,1.39252994,1794.1,1794.0,2.4443]
[1745641926102,1.39252994,1794.1,1793.9,3.619]
[1745641926103,1.39258994,1794.0,1793.9,3.619]
[1745641926306,3.03048994,1794.0,1793.9,4.5376]
[1745641926510,1.39258994,1794.0,1793.9,7.2515]
[1745641926710,1.39258994,1794.0,1793.9,6.1372]
[1745641929111,1.39258994,1794.0,1793.9,5.2186]
[1745641930319,0.27834994,1794.0,1793.9,6.3329]
[1745641931111,1.39258994,1794.0,1793.9,6.3329]
[1745641931912,1.39258994,1794.0,1793.9,6.1376]
[1745641933316,1.39258994,1794.0,1793.9,9.3454]
[1745641935420,1.39258994,1794.0,1793.9,10.4597]
[1745641935919,1.39258994,1794.0,1793.9,9.3454]
[1745641937111,1.39258994,1794.0,1793.9,10.4597]
[1745641937318,1.39258994,1794.0,1793.9,9.3454]
[1745641937513,0.27834994,1794.1,1793.9,9.3454]
[1745641937719,0.27834994,1794.3,1794.2,1.11412]
[1745641937919,0.27834994,1794.3,1794.2,4.32192]
[1745641939116,0.27834994,1794.3,1794.2,1.11412]
[1745641939313,0.27834994,1794.3,1794.2,4.32192]
[1745641941614,0.27564903,1794.3,1794.2,4.32192]
[1745641943322,0.27294812,1794.5,1794.4,1.11399]
[1745641943522,0.27294812,1794.5,1794.4,4.32179]
[1745641944320,0.27294812,1794.5,1794.4,5.16959]
[1745641944518,1.38687812,1794.5,1794.4,4.0556]
[1745641944912,1.38687812,1794.5,1794.4,5.7812]
[1745641946115,0.27294812,1794.5,1794.4,6.89519]
[1745641946315,1.38687812,1794.5,1794.4,5.7812]
[1745641947419,0.27294812,1794.5,1794.4,5.7812]
[1745641947626,1.38687812,1794.5,1794.4,5.7812]
[1745641948412,1.38687812,1794.5,1794.4,6.6183]
[1745641952219,1.38687812,1794.5,1794.4,7.73229]
[1745641953133,1.38687812,1794.5,1794.4,5.7705]
[1745641953827,0.27294812,1794.5,1794.4,7.80449]
[1745641954218,1.38687812,1794.5,1794.4,6.6905]
[1745641954620,1.38687812,1794.5,1794.4,8.66079]
[1745641954621,0.27294812,1794.5,1794.4,8.66079]
[1745641955319,1.91455,1794.7,1794.5,1.11393]
[1745641955320,1.38681812,1794.6,1794.5,1.11393]
[1745641955519,1.38681812,1794.6,1794.5,1.674]
[1745641956115,1.99264812,1794.6,1794.5,2.78793]
[1745641956319,0.27294812,1794.6,1794.5,2.78793]
[1745641957030,1.38681812,1794.6,1794.5,2.78793]
[1745641957229,0.27294812,1794.6,1794.5,2.78793]
[1745641959630,0.27294812,1794.7,1794.6,1.11387]
[1745641959832,0.27294812,1794.7,1794.6,5.92757]
[1745641960223,0.27294812,1794.9,1794.8,1.11375]
[1745641960425,0.27294812,1794.9,1794.8,4.32155]
[1745641963831,0.27294812,1794.9,1794.8,6.06335]
[1745641964536,1.38662812,1794.9,1794.8,4.9496]
[1745641965125,0.27294812,1794.9,1794.8,6.06335]
[1745641965831,0.27294812,1794.9,1794.8,6.07815]
[1745641966030,1.38662812,1794.9,1794.8,6.07815]
[1745641966227,1.38662812,1794.9,1794.8,4.9644]
[1745641967033,1.38662812,1794.9,1794.8,6.07815]
[1745641967942,0.27294812,1794.9,1794.8,6.07815]
[1745641968553,1.38657812,1795.0,1794.8,6.07815]
[1745641968739,1.38657812,1795.0,1794.9,2.72968]
[1745641970052,1.38657812,1795.0,1794.9,1.616]
[1745641970551,2.98007812,1795.0,1794.9,1.616]
[1745641973251,1.38657812,1795.0,1794.9,2.72968]
[1745641976252,1.38657812,1795.0,1794.9,1.616]
[1745641976950,3.00227812,1795.0,1794.9,1.616]
[1745641979653,1.38657812,1795.0,1794.9,1.616]
[1745641980650,3.09447812,1795.0,1794.9,1.616]
[1745641981553,3.09447812,1795.0,1794.9,2.72968]
[1745641982656,3.09447812,1795.0,1794.9,1.616]
[1745641983144,1.38662812,1794.9,1794.8,4.0366]
[1745641983351,3.03512812,1794.9,1794.8,4.0366]
[1745641983556,3.03512812,1794.9,1794.8,3.2226]
[1745641984254,3.03512812,1794.9,1794.8,4.868]
[1745641986458,3.03512812,1794.9,1794.8,3.2078]
[1745641986860,3.03512812,1794.9,1794.8,0.9215]
[1745641987357,13.90512812,1794.9,1794.8,0.9215]
[1745641987658,1.11399,1794.4,1794.3,3.2078]
[1745641987855,1.38693812,1794.4,1794.3,0.0148]
[1745641988050,6.38693812,1794.4,1794.3,0.0148]
[1745641988253,1.38706812,1794.2,1794.1,3.2078]
[1745641988859,3.04186812,1794.2,1794.1,3.2078]
[1745641995966,1.11424,1794.0,1793.9,6.8258]
[1745641996166,1.38718812,1794.0,1793.9,3.2078]
[1745641996463,1.38718812,1794.0,1793.9,4.8205]
[1745641996658,1.38718812,1794.0,1793.9,3.2078]
[1745641996962,1.99708812,1794.0,1793.9,3.2078]
[1745641997364,1.38718812,1794.0,1793.9,3.2078]
[1745641997565,3.05488812,1794.0,1793.9,3.2078]
[1745641997762,3.05488812,1794.0,1793.9,4.8205]
[1745641998465,3.05488812,1794.0,1793.9,5.9348]
[1745641998466,0.27294812,1794.0,1793.9,5.9348]
[1745641998670,1.38718812,1794.0,1793.9,4.8205]
[1745642004272,2.25818812,1794.0,1793.9,4.8205]
[1745642007367,1.38718812,1794.0,1793.9,4.8205]
[1745642016364,1.11413,1794.2,1794.1,1.11418]
[1745642016566,1.38707812,1794.2,1794.1,3.2078]
[1745642016965,1.38707812,1794.2,1794.1,5.6903]
[1745642018371,2.23157812,1794.2,1794.1,5.6903]
[1745642019074,2.23157812,1794.2,1794.1,3.2078]
[1745642020279,1.11424,1794.0,1793.9,4.7925]
[1745642022372,1.38718812,1794.0,1793.9,4.7925]
[1745642023267,1.38718812,1794.0,1793.9,1.5847]
[1745642026671,1.38718812,1794.0,1793.9,4.7925]
[1745642028081,0.27294812,1794.0,1793.9,5.9068]
[1745642029078,1.38718812,1794.0,1793.9,5.9068]
[1745642029969,0.27294812,1794.0,1793.9,5.9068]
[1745642030174,0.27294812,1794.3,1794.2,1.11412]
[1745642030375,0.27294812,1794.3,1794.2,4.32192]
[1745642030880,1.38700812,1794.3,1794.2,3.2078]
[1745642031177,1.38712812,1794.1,1794.0,4.827]
[1745642031677,1.38712812,1794.1,1794.0,1.6192]
[1745642033381,1.38712812,1794.1,1794.0,4.827]
[1745642036179,1.38712812,1794.1,1794.0,1.6192]
[1745642037583,1.38712812,1794.1,1794.0,2.73344]
[1745642038273,1.38712812,1794.1,1794.0,5.94124]
[1745642038480,1.38712812,1794.1,1794.0,4.827]
[1745642039885,1.38712812,1794.1,1794.0,5.94124]
[1745642040073,0.27294812,1794.1,1794.0,5.94124]
[1745642040684,1.38712812,1794.1,1794.0,4.827]
[1745642041083,0.27294812,1794.1,1794.0,5.94124]
[1745642041583,1.38712812,1794.1,1794.0,4.827]
[1745642042478,1.38712812,1794.1,1794.0,1.6192]
[1745642043287,1.11424,1794.0,1793.9,0.8439]
[1745642043485,3.71504,1794.0,1793.9,0.8439]
[1745642043986,3.98798812,1794.0,1793.9,0.8439]
[1745642044189,2.23278812,1794.0,1793.9,2.5129]
[1745642044486,0.27294812,1794.0,1793.9,4.4526]
[1745642044685,0.27294812,1794.1,1793.9,3.3383]
[1745642044981,1.38712812,1794.1,1794.0,2.78324]
[1745642045186,1.38712812,1794.1,1794.0,1.669]
[1745642045386,1.38712812,1794.1,1794.0,2.78324]
[1745642045685,1.38712812,1794.1,1794.0,1.669]
[1745642046078,0.27294812,1794.1,1794.0,2.78324]
[1745642046280,0.27294812,1794.1,1794.0,1.669]
[1745642046281,1.38712812,1794.1,1794.0,1.669]
[1745642047089,1.38712812,1794.1,1794.0,2.78324]
[1745642048383,0.27294812,1794.1,1794.0,5.99104]
[1745642048991,1.38712812,1794.1,1794.0,4.8768]
[1745642049187,1.38712812,1794.1,1794.0,5.99104]
[1745642049388,0.27294812,1794.1,1794.0,5.99104]
[1745642050086,1.38712812,1794.1,1794.0,4.8768]
[1745642050684,1.38712812,1794.1,1794.0,1.669]
[1745642050886,1.38718812,1794.0,1793.9,1.6693]
[1745642051390,1.38718812,1794.0,1793.9,3.3898]
[1745642053988,3.08138812,1794.0,1793.9,3.3898]
[1745642055793,3.08138812,1794.0,1793.9,2.5644]
[1745642056496,1.38724812,1793.9,1793.8,3.619]
[1745642056695,3.13564812,1793.9,1793.8,3.619]
[1745642056995,1.11437,1793.8,1793.7,0.0148]
[1745642057192,1.11437,1793.8,1793.7,1.7449]
[1745642057693,1.11449,1793.6,1793.5,3.2078]
[1745642058392,2.86289,1793.6,1793.5,3.2078]
[1745642061498,3.13583812,1793.6,1793.5,3.2078]
[1745642063197,1.11455,1793.5,1793.4,1.6871]
[1745642063798,1.38749812,1793.5,1793.4,1.6871]
[1745642068793,3.05729812,1793.5,1793.4,1.6871]
[1745642074701,1.38756812,1793.4,1793.3,0.8719]
[1745642074900,3.84506812,1793.4,1793.3,2.6116]
[1745642076597,1.38762812,1793.3,1793.2,3.618]
[1745642076798,1.38762812,1793.3,1793.2,6.1818]
[1745642076999,3.03042812,1793.3,1793.2,4.4421]
[1745642078203,1.38768812,1793.2,1793.1,4.8128]
[1745642078405,3.03048812,1793.2,1793.1,4.8128]
[1745642078704,1.11499,1792.8,1792.7,3.2078]
[1745642079007,1.38793812,1792.8,1792.7,3.9996]
[1745642079203,1.38793812,1792.8,1792.7,2.3968]
[1745642085110,0.27294812,1792.8,1792.7,2.3968]
[1745642085613,1.38793812,1792.8,1792.7,2.3968]
[1745642087411,0.27294812,1792.8,1792.7,3.51185]
[1745642087607,0.27294812,1792.8,1792.7,8.51185]
[1745642087802,0.27294812,1792.8,1792.7,12.13185]
[1745642088010,0.27294812,1792.8,1792.7,7.13185]
[1745642088206,0.27294812,1792.8,1792.7,12.13185]
[1745642088411,0.27294812,1792.8,1792.7,7.13185]
[1745642088805,0.27294812,1792.8,1792.7,12.13185]
[1745642089514,0.27294812,1792.8,1792.7,7.13185]
[1745642091116,0.27294812,1792.8,1792.7,12.13185]
[1745642091506,0.28764812,1792.9,1792.7,12.13185]
[1745642091710,0.28764812,1792.9,1792.8,5.95639]
[1745642092111,0.28764812,1792.9,1792.8,10.95639]
[1745642092620,0.28764812,1792.9,1792.8,5.95639]
[1745642094217,0.28764812,1792.9,1792.8,6.78419]
[1745642107828,1.89494812,1792.9,1792.8,6.78419]
[1745642108330,0.28764812,1792.9,1792.8,6.78419]
[1745642111727,0.27294812,1792.9,1792.8,6.78419]
[1745642115732,0.27294812,1792.9,1792.8,5.95639]
[1745642116324,1.94704812,1792.9,1792.8,5.95639]
[1745642116631,1.94704812,1792.9,1792.8,4.32279]
[1745642117732,3.06197812,1792.9,1792.8,4.32279]
[1745642117926,1.94704812,1792.9,1792.8,4.32279]
[1745642118321,3.06197812,1792.9,1792.8,3.2078]
[1745642118531,1.94704812,1792.9,1792.8,4.32279]
[1745642119827,3.06197812,1792.9,1792.8,3.2078]
[1745642120030,1.94704812,1792.9,1792.8,5.98429]
[1745642120433,3.06197812,1792.9,1792.8,3.2078]
[1745642121330,3.06197812,1792.9,1792.8,5.7172]
[1745642121836,1.94704812,1792.9,1792.8,6.83219]
[1745642122226,0.27294812,1792.9,1792.8,6.83219]
[1745642122423,0.27294812,1792.9,1792.8,4.32279]
[1745642122726,3.00977812,1792.9,1792.8,3.2078]
[1745642128927,1.89484812,1792.9,1792.8,4.32279]
[1745642129131,1.89484812,1792.9,1792.8,6.00629]
[1745642131038,3.00977812,1792.9,1792.8,4.8913]
[1745642131241,3.00977812,1792.9,1792.8,1.6835]
[1745642132636,1.11499,1792.8,1792.7,3.62]
[1745642132838,2.79094812,1792.8,1792.7,4.73505]
[1745642133036,2.79094812,1792.8,1792.7,6.44795]
[1745642134342,0.27294812,1792.8,1792.7,6.44795]
[1745642136546,0.27294812,1792.9,1792.8,1.11499]
[1745642136746,0.27294812,1792.9,1792.8,3.58319]
[1745642138348,0.27294812,1792.9,1792.8,6.79099]
[1745642139547,1.38787812,1792.9,1792.8,6.79099]
[1745642139743,0.27294812,1792.9,1792.8,6.79099]
[1745642139952,0.00270091,1793.2,1792.8,5.676]
[1745642140155,1.11745091,1793.2,1793.0,4.30792]
[1745642140353,1.11745091,1793.2,1793.1,1.7156]
[1745642141053,1.11745091,1793.2,1793.1,2.8304]
[1745642141255,1.11745091,1793.2,1793.1,3.6337]
[1745642141450,0.00270091,1793.2,1793.1,3.6337]
[1745642143361,0.00270091,1793.3,1793.2,1.11474]
[1745642143558,0.00270091,1793.3,1793.2,3.65804]
[1745642144356,0.00270091,1793.3,1793.2,6.86584]
[1745642146057,0.00270091,1793.5,1793.4,1.11462]
[1745642146357,1.11443,1793.7,1793.5,1.11452]
[1745642146547,1.11443,1793.7,1793.6,2.5644]
[1745642146959,3.69750091,1793.8,1793.6,3.67889]
[1745642147157,0.00270091,1793.8,1793.7,2.70603]
[1745642147362,0.00270091,1793.9,1793.8,1.11437]
[1745642148160,0.00270091,1793.9,1793.8,2.70597]
[1745642148860,1.11700091,1793.9,1793.8,1.5916]
[1745642150148,2.83050091,1793.9,1793.8,1.5916]
[1745642150552,1.11437,1793.8,1793.7,3.617]
[1745642150752,2.82787,1793.8,1793.7,5.2764]
[1745642151359,2.83057091,1793.8,1793.7,5.2764]
[1745642151852,1.71620091,1793.8,1793.7,6.39083]
[1745642152661,1.71620091,1793.8,1793.7,5.2764]
[1745642152856,2.83057091,1793.8,1793.7,5.2764]
[1745642153962,2.83057091,1793.8,1793.7,3.617]
[1745642154658,1.11447,1793.7,1793.5,1.729]
[1745642154856,1.11719091,1793.6,1793.5,1.729]
[1745642155258,2.70239091,1793.6,1793.5,1.729]
[1745642155763,1.58790091,1793.6,1793.5,1.729]
[1745642155964,1.58790091,1793.6,1793.5,3.70435]
[1745642157964,1.58790091,1793.6,1793.5,4.54975]
[1745642158165,0.00270091,1793.6,1793.5,4.54975]
[1745642159861,1.11719091,1793.6,1793.5,3.4352]
[1745642160059,2.74869091,1793.6,1793.5,2.5898]
[1745642160663,1.11455,1793.5,1793.4,3.617]
[1745642160866,2.74605,1793.5,1793.4,3.617]
[1745642161065,1.11738091,1793.3,1793.2,3.2078]
[1745642161265,1.11738091,1793.3,1793.2,4.8826]
[1745642161667,2.74888091,1793.3,1793.2,4.8826]
[1745642161861,1.63420091,1793.3,1793.2,5.99734]
[1745642162470,2.74888091,1793.3,1793.2,4.8826]
[1745642164066,2.74888091,1793.3,1793.2,1.6748]
[1745642164265,2.74888091,1793.3,1793.2,4.8826]
[1745642166372,2.74888091,1793.3,1793.2,3.2078]
[1745642168271,2.74888091,1793.3,1793.2,4.9612]
[1745642169471,0.00270091,1793.3,1793.2,6.07594]
[1745642169672,0.00270091,1793.3,1793.2,6.94594]
[1745642170068,0.00270091,1793.3,1793.2,5.8312]
[1745642170069,1.11738091,1793.3,1793.2,5.8312]
[1745642170274,1.11738091,1793.3,1793.2,4.9612]
[1745642170475,2.85608091,1793.3,1793.2,4.9612]
[1745642172377,1.11474,1793.2,1793.1,4.4308]
[1745642172572,2.74434,1793.2,1793.1,6.1336]
[1745642173567,2.74704091,1793.2,1793.1,6.1336]
[1745642174577,2.74704091,1793.2,1793.1,3.615]
[1745642174780,2.74704091,1793.2,1793.0,3.2078]
[1745642174781,1.1148,1793.1,1793.0,3.2078]
[1745642174981,3.64080091,1793.1,1793.0,3.2078]
[1745642176274,1.11756091,1793.0,1792.9,1.7466]
[1745642176482,1.11493,1792.9,1792.8,5.56777]
[1745642176680,2.83449091,1793.0,1792.9,1.11493]
[1745642176882,2.83449091,1793.0,1792.9,1.7466]
[1745642179484,1.11756091,1793.0,1792.9,1.7466]
[1745642182885,0.00270091,1793.0,1792.9,6.06933]
[1745642183075,1.11756091,1793.0,1792.9,4.9544]
[1745642183275,0.00270091,1793.1,1793.0,1.11486]
[1745642183778,0.00270091,1793.3,1793.2,1.11474]
[1745642184383,1.11738091,1793.3,1793.1,7.93957]
[1745642186382,1.11744091,1793.2,1793.1,6.8248]
[1745642186782,0.00270091,1793.2,1793.1,6.8248]
[1745642187781,0.00270091,1793.2,1793.1,7.9396]
[1745642189783,1.11744091,1793.2,1793.1,6.8248]
[1745642191384,1.96564091,1793.2,1793.1,6.8248]
[1745642191779,1.96564091,1793.2,1793.1,3.2078]
[1745642196687,2.57644091,1793.2,1793.1,3.2078]
[1745642197091,1.1149,1793.0,1792.8,4.72994]
[1745642197291,1.1149,1793.0,1792.9,3.2078]
[1745642197590,1.11760091,1793.0,1792.9,4.32273]
[1745642197790,0.00270091,1793.0,1792.9,4.32273]
[1745642198289,1.11756091,1793.0,1792.9,4.32273]
[1745642198792,1.11756091,1793.0,1792.9,5.17573]
[1745642198990,1.11756091,1793.0,1792.9,1.96793]
[1745642199192,1.11756091,1793.0,1792.9,4.0608]
[1745642202605,1.11756091,1793.0,1792.9,5.7668]
[1745642205299,1.11756091,1793.0,1792.9,6.88173]
[1745642205998,1.11756091,1793.0,1792.9,7.70663]
[1745642206401,0.00270091,1793.0,1792.9,7.70663]
[1745642206601,0.00270091,1793.1,1793.0,1.11486]
[1745642207703,0.00270091,1793.1,1792.9,4.8857]
[1745642207704,0.00270091,1793.5,1793.3,1.11466]
[1745642208003,3.70925091,1793.5,1793.4,0.8606]
[1745642209404,0.00270091,1793.5,1793.4,1.97522]
[1745642210006,1.11725091,1793.5,1793.4,1.97522]
[1745642210398,1.11725091,1793.5,1793.4,0.8606]
[1745642211405,2.83705091,1793.5,1793.4,0.8606]
[1745642212705,1.11468,1793.3,1793.2,5.14739]
[1745642212906,1.11468,1793.3,1793.2,5.99559]
[1745642213305,1.11738091,1793.3,1793.2,4.8809]
[1745642213506,1.11738091,1793.3,1793.2,4.056]
[1745642213706,2.83718091,1793.3,1793.2,4.056]
[1745642214006,2.83718091,1793.3,1793.2,3.2078]
[1745642214401,1.11474,1793.2,1793.1,4.4201]
[1745642214601,2.71204,1793.2,1793.1,4.4201]
[1745642214801,2.71474091,1793.2,1793.1,4.4201]
[1745642218008,1.60000091,1793.2,1792.9,3.2078]
[1745642218208,3.57123,1793.1,1792.9,5.14979]
[1745642219507,0.00270091,1793.0,1792.9,5.14979]
[1745642221505,1.11481,1793.1,1793.0,1.11486]
[1745642221899,1.11751091,1793.1,1792.9,5.14978]
[1745642222311,1.11751091,1793.1,1793.0,1.602]
[1745642222711,1.11751091,1793.1,1793.0,2.71686]
[1745642223010,1.11751091,1793.1,1793.0,1.602]
[1745642227514,1.11756091,1793.0,1792.9,0.8271]
[1745642227717,1.11756091,1793.0,1792.9,2.5462]
[1745642230715,1.96596091,1793.0,1792.9,2.5462]
[1745642232019,1.96596091,1793.0,1792.8,6.8228]
[1745642232020,1.11493,1792.9,1792.8,6.8228]
[1745642232222,2.86733091,1792.9,1792.8,6.8228]
[1745642233414,2.86733091,1792.9,1792.8,3.2078]
[1745642234417,3.47813091,1792.9,1792.8,3.2078]
[1745642236024,2.78748,1792.8,1792.5,5.2581]
[1745642236224,0.00270091,1792.6,1792.5,8.07007]
[1745642236524,1.11781091,1792.6,1792.5,6.37327]
[1745642237024,1.11781091,1792.6,1792.5,5.2581]
[1745642239630,0.00270091,1792.3,1791.3,10.57944038]
[1745642239922,3.2078,1791.7,1791.3,8.20164038]
[1745642240127,1.11856091,1791.4,1791.3,0.83]
[1745642241033,2.77946091,1791.4,1791.3,0.83]
[1745642241527,0.00270091,1791.8,1791.3,12.6528]
[1745642241722,1.11571,1791.7,1791.4,1.11583]
[1745642242622,0.00270091,1791.7,1791.5,1.11578]
[1745642242822,0.00270091,1791.7,1791.6,0.8517]
[1745642243120,0.00270091,1791.7,1791.3,3.2078]
[1745642243330,1.58670091,1791.7,1791.2,1.11593]
[1745642243530,1.58670091,1791.7,1791.3,6.00452]
[1745642243531,1.1158,1791.6,1791.3,6.00452]
[1745642244028,0.00270091,1791.5,1791.3,6.00448]
[1745642244232,0.00270091,1791.5,1791.4,1.11586]
[1745642244426,1.584,1791.7,1791.3,8.5046]
[1745642244427,0.00270091,1791.7,1791.5,1.1158]
[1745642244632,0.00270091,1791.7,1791.6,1.11574]
[1745642244930,0.00270091,1791.9,1791.8,1.11561]
[1745642245127,0.00270091,1791.9,1791.7,2.79643]
[1745642245332,1.11825091,1791.9,1791.7,2.79643]
[1745642245517,0.00270091,1791.9,1791.7,2.79643]
[1745642245723,0.00270091,1792.0,1791.7,1.6808]
[1745642245925,1.11819091,1792.0,1791.8,1.11556]
[1745642246230,1.11819091,1792.0,1791.7,6.00425]
[1745642246422,0.00270091,1791.8,1791.7,4.8886]
[1745642246825,1.11831091,1791.8,1791.7,4.8886]
[1745642247030,1.11831091,1791.8,1791.7,3.2078]
[1745642247331,1.11837091,1791.7,1791.6,0.00364907]
[1745642247531,3.55267091,1791.7,1791.6,0.00364907]
[1745642257334,0.00270091,1791.7,1791.6,0.00364907]
[1745642257535,0.00270091,1791.7,1791.6,1.11938907]
[1745642258541,1.11837091,1791.7,1791.6,1.11938907]
[1745642259641,0.00270091,1791.7,1791.6,1.11938907]
[1745642261041,0.00270091,1791.7,1791.6,2.76228907]
[1745642261745,0.00270091,1791.8,1791.7,1.11567]
[1745642261943,0.00270091,1791.8,1791.7,3.60587]
[1745642262640,0.00270091,1791.9,1791.7,3.60587]
[1745642262938,0.00270091,1792.0,1791.9,1.11555]
[1745642263140,0.00270091,1792.0,1791.9,5.99215]
[1745642265948,0.00270091,1792.1,1792.0,1.11549]
[1745642266443,0.00270091,1792.1,1792.0,1.94329]
[1745642267141,0.00270091,1792.4,1792.3,1.1153]
[1745642269347,0.00270091,1792.6,1792.5,1.11517]
[1745642269539,0.00270091,1792.6,1792.2,4.4598]
[1745642269734,1.11521,1792.5,1792.3,1.11528]
[1745642270246,1.11524,1792.4,1792.3,1.11528]
[1745642270445,1.62140091,1792.6,1792.2,4.4598]
[1745642270647,1.1153,1792.3,1792.2,4.4598]
[1745642270845,1.11800091,1792.3,1792.2,3.624]
[1745642271148,1.11800091,1792.3,1792.1,4.32319]
[1745642272039,2.79100091,1792.3,1792.1,4.32319]
[1745642272642,1.11536,1792.2,1792.1,3.2078]
[1745642272845,2.78836,1792.2,1792.1,3.2078]
[1745642273545,0.00270091,1792.2,1792.1,4.32322]
[1745642275349,0.00270091,1792.2,1792.1,1.11542]
[1745642276850,1.11806091,1792.2,1792.1,1.11542]
[1745642277051,0.00270091,1792.2,1792.1,1.11542]
[1745642277250,1.11806091,1792.2,1792.1,1.11542]
[1745642277451,0.00270091,1792.2,1792.1,1.11542]
[1745642279960,1.11806091,1792.2,1792.1,1.11542]
[1745642280365,1.673,1792.3,1791.9,6.8318]
[1745642280366,1.11819091,1792.0,1791.9,6.8318]
[1745642280662,1.11819091,1792.0,1791.9,3.624]
[1745642281165,0.00270091,1792.0,1791.9,4.73955]
[1745642281372,1.11819091,1792.0,1791.9,4.73955]
[1745642281667,0.00270091,1792.0,1791.9,4.73955]
[1745642282467,0.00270091,1792.0,1791.9,6.44325]
[1745642282865,0.00270091,1792.2,1791.9,6.44325]
[1745642283065,0.00270091,1792.0,1791.9,6.44325]